{"text_format":"1","workbook":"xlsx","n_sheets":3,"sheets":["GXアンケート"," 高効率給湯器（ハイブリッド）記入例"," 高効率給湯器（ハイブリッド）フォーマット"],"not_rendered":{"charts":0,"images":1,"macros":1,"external_links":0,"defined_names":3,"comments":1,"pivot_tables":0},"unopened":[],"bounds":{"document_bytes":16777216,"sheet_cells":100000,"rows_first":2000,"rows_last":500,"rows_between":2000,"halvings":0,"cell_chars":16384,"cell_head_chars":4096},"cells_cut":0,"cells_raw":0,"read":"whole","date_system":"1900"}

{"sheet":"GXアンケート","index":0,"n_rows":20,"n_cols":12,"rows_kept":20,"cut":false,"hidden":false,"merged":[[12,1,12,9],[12,11,12,14],[1,1,1,15],[3,1,3,14],[7,1,7,14],[8,1,8,14],[9,1,9,12],[10,1,10,14]]}
[]
[null,"給湯省エネ2024事業の登録メーカーは、右記の「製品登録前に必ずご確認ください｜GXへの取り組み内容」を踏まえ、以下のアンケートに回答したうえで製品登録してください。"]
[]
[null,"①GXへの取り組みを理解したうえで、\n　給湯省エネ2024事業に製品を登録します。\n　※下記の「はい」「いいえ」のいずれかに○を付けてください"]
[]
[null,null,null,null,null,"はい",null,null,null,"いいえ"]
[]
[null,"②OEM供給を受けているメーカーは、製造元を下記に記入してください。"]
[]
[]
[null,"③署名"]
[null,"会社名",null,null,null,null,null,null,null,null,null,"担当者名"]
[]
[]
[]
[]
[]
[]
[]
[null,"※本アンケートは初回登録時のみご提出ください。"]

{"sheet":" 高効率給湯器（ハイブリッド）記入例","index":1,"n_rows":52,"n_cols":28,"rows_kept":52,"cut":false,"hidden":false,"merged":[[44,2,44,3],[46,2,46,3],[47,2,47,3],[48,2,48,3],[0,26,0,27],[4,5,4,6],[6,5,6,6],[7,5,7,6],[43,2,43,3],[8,5,8,6],[9,5,9,6],[24,2,24,3],[3,17,3,24],[39,2,39,3],[5,5,5,6]]}
[null,null,null,null,null,null,null,null,null,null,null,null,null,null,null,null,null,null,null,null,null,null,null,null,null,null,"【様式 A1-2】"]
[null,"【入力見本】　○ヒートポンプ・ガス瞬間式併用型給湯機（ハイブリッド給湯機）　対象製品リスト申請様式　（※このシートには入力しないでください）"]
[]
[null,null,null,null,null,null,null,null,null,null,null,null,null,null,null,null,null,"給湯省エネ2024"]
[null,1,2,3,4,5,null,6,7,8,9,10,11,12,13,14,15,16,17,18,19,20,21,22,23,24,25,26]
[null,"メーカーコード","●登録事業者名","製造\nメーカー名","●機種区分\n（自動入力）","●製品名\n（リスト選択）",null,"機能等","●\n製品型番\n(ヒートポンプユニット)","補助熱源部\n代表機種名","製造元製品\nとの\n適合確認\n（リスト選択）","適合確認した\n製品型番","●\n年間給湯\n効率（％）","給湯省エネ2024\n事業対象\n（リスト選択）","給湯能力\n（号数）","第三者認証\n又は\n自己適合宣言書\n（リスト選択）","品質管理\n認証取得","●\nA要件\n区分\n（リスト選択）","A要件\n確認方法\n（自動入力）","A要件\n納品書確認型式","A要件\n現地確認型式","●\nB要件\n区分\n（リスト選択）","B要件\n確認方法\n（自動入力）","B要件\n現地確認型式","B要件\n給湯ユニット型式ごとの給湯効率","対象製品\nリスト\n掲載可能日","製品情報の\n対外非公表\nを希望する\n（リスト選択）","備考"]
[null,"◆◆","株式会社●●●","株式会社●●●","ハイブリッド給湯機","ハイブリッドふろ給湯システム",null,null,"HP-2020","BHA-112233",null,null,"12.5.8",null,24,"自己適合宣言書","ISO9001",2,"リモコン型式","RC-G057PEW-2マルチセット","RC-G057MPW-2",1,"本体型式"]
[null,"◆◆","株式会社●●●","株式会社●●●","ハイブリッド給湯機","ハイブリッドふろ給湯システム",null,null,"HP-2020BL","BHA-112234",null,null,"125.8",null,24,"第三者認証","ISD9001",2,"リモコン型式","RC-G057PEW-2マルチセット","RC-G057MPW-2",1,"本体型式"]
[null,"◆◆","株式会社●●●","株式会社●●●","ハイブリッド給湯機","ハイブリッド給湯・暖房システム",null,"暖房付き","HP-2232BL","BHA-112235",null,null,"116.5",null,24,"第三者認証","ISD9001",2,"リモコン型式","RC-G057PEW-2マルチセット,RC-K001PEWマルチセット（HB）,RC-K001EWマルチセット,RC-K001PEWマルチセット,RC-K061PEWマルチセット","RC-G057MPW-2,RC-K001MW,RC-K001MW-FCN,RC-K001MPW,RC-K001MPW-FCN",1,"本体型式",null,null,null,"〇"]
[null,"◆◆","株式会社●●●","株式会社●●●","ハイブリッド給湯機","シングルハイブリッド\n給湯・暖房システム",null,null,"RHP-R222(E)-E       ","BHA-112236",null,null,"116.5",null,24,"自己適合宣言書","ISO9001",1,"本体型式",null,null,2,"貯湯ユニット型式","RTU-R505(E)EG,RTU-R505K(E)EG,RTU-R505(E)-U-EG,,RTU-R1002(E)EG,RTU-R1002K(E)EG,RTU-R1600-EG,RTU-R1600K-EG","1.165,1.165,1.165,1.109,1.281,1.281,1.423,1.423","YYYY/MM/DD"]
[]
[null,"■記入の際の注意事項"]
[null,"　　　　製品リストは、電算処理を行いますので記入ルールをよくご確認の上、資料を作成してください。条件に従っていない場合はエラーとなりますのでご注意ください。"]
[null,"注1）","色が付いている項目（任意項目以外）は、原則すべて入力すること。（該当なしの場合は空白で可。）"]
[null,"注2）","数字は半角、英字は半角大文字で記入すること。不要なスペースは入力しないこと。"]
[null,"注3）","入力の起点（●列●行目）を変えず、書式フォーマットの変更（列の削除や追加）は行わないこと。また、行はあけずにつめて入力すること。"]
[null,"注4）","環境依存文字（②、Ⅱ、㈱、㈲、等）を使用しないこと。関数（計算式）、参照・リンク（他ファイル、他シート）等は行わないこと。"]
[null,"注5）","製品リストの行が足りなくなった場合は、適宜、行の追加すること。"]
[null,"※","先頭に”●”のある項目情報は、ＨＰ上で公表を行う"]
[]
[null,"■追加登録の際の注意事項"]
[null,"注1）","製品登録完了後に万が一修正が発生した場合は、修正部分の項目セルに必ず色付け（黄色）をし、修正部分が分かるようにして再提出すること。"]
[]
[null,"■項目説明"]
[]
[null,"項番","項目",null,"型","最大文字数","必須\n／任意","項目説明",null,null,null,null,null,null,null,"HP上表示"]
[null,1,"メーカーコード",null,"半角英数",3,"必須","事務局より付与されたコードを記入"]
[null,2,"登録事業者名",null,"文字",60,"必須","登録製品を販売する事業者名を記入",null,null,null,null,null,null,null,"●"]
[null,3,"製造\nメーカー名",null,"文字",60,"必須","登録事業者に製品を供給する製造・輸入事業者名を記入"]
[null,4,"機種区分",null,"文字",60,"必須","「ハイブリッド給湯機」を記入",null,null,null,null,null,null,null,"●"]
[null,5,"製品名",null,"文字",60,"必須","「ハイブリッド給湯・暖房システム」又は「ハイブリッドふろ給湯システム」を記入",null,null,null,null,null,null,null,"●"]
[null,6,"機能等　　　",null,"文字",60,"任意","暖房付きなど区分を記入、対象にないものは空欄"]
[null,7,"製品型番（（ヒートポンプユニット）",null,"半角英数大文字",24,"必須","製品型番を記入、他の型番との重複不可",null,null,null,null,null,null,null,"●"]
[null,8,"補助熱源部代表機種名",null,"半角英数大文字",24,"必須","例外的にハイフン可"]
[null,9,"製造元製品との適合確認",null,"〇","固定値","任意","登録事業者と製造・輸入事業者が異なる場合で、製造事業者による適合確認書で基準の適合確認を行う場合、「○」を記入"]
[null,10,"適合確認した製品型番",null,"半角英数大文字",24,"任意","登録事業者と製造・輸入事業者が異なる場合で、適合確認している製造元製品の型番を記入"]
[null,11,"年間給湯効率（％）",null,"半角数字",5,"必須","小数点以下一桁まで記入",null,null,null,null,null,null,null,"●"]
[null,12,"給湯省エネ2024事業対象",null,"〇","固定値","任意","給湯省エネ2024事業対象の対象機種となる場合は「〇」を記入"]
[null,13,"給湯能力(号数）",null,"半角数字",4,"必須","整数又は小数点以下一桁まで記入"]
[null,14,"第三者認証又は自己適合宣言書",null,"文字",10,"必須","熱効率を証明するものとして「第三者認証」または「自己適合宣言書」のいずれかを記入"]
[null,15,"品質管理認証取得",null,"文字",10,"必須","製造品質管理の証明として「ＩＳＯ９００１」を取得している場合はそれを記入"]
[null,16,"A要件/区分",null,"半角数字",1,"選択必須","A要件対象機種は必須、1～2のいずれかを記入　１＝本体型式　２＝リモコン型式",null,null,null,null,null,null,null,"●"]
[null,17,"A要件/確認方法（自動入力）",null,"文字（自動入力）","固定値","選択必須","項目16で「1」または「2」を選択した場合に「本体型式」または、「リモコン型式」が自動入力されます"]
[null,18,"A要件/納品書確認型式",null,"文字","無制限","選択必須","項目17で2リモコンを選択した場合は必須、リモコンの型式を記入、複数の型式がある場合は、カンマ「,」で区切って併記、列幅は調整可、型式に追加修正があった場合は赤字で記入"]
[null,19,"A要件/現地確認型式",null,"文字","無制限","選択必須","現地に設置されるリモコン型式を記入、項目18と相対する順で記入、複数の型式がある場合は、カンマ「,」で区切って併記列幅は調整可、型式に追加修正があった場合は赤字で記入"]
[null,20,"B要件/区分",null,"半角数字",1,"選択必須","B要件対象機種は必須、1～2のいずれかを記入　１＝本体型式　２＝貯湯ユニット型式",null,null,null,null,null,null,null,"●"]
[null,21,"B要件/確認方法（自動入力）",null,"文字（自動入力）","固定値","選択必須","項目20で「1」または「2」を選択した場合に「本体型式」または、「貯湯ユニット型式」が自動入力されます"]
[null,22,"B要件/現地確認型式",null,"文字","無制限","選択必須","項目20で「2」を選択した場合に組み合わせ可能な貯湯ユニットをすべて記入、複数の型式がある場合は、カンマ「,」で区切って併記、列幅は調整可、型式に追加修正があった場合は赤字で記入"]
[null,23,"B要件/給湯ユニット型式ごとの給湯効率",null,"半角数字","無制限","選択必須","項目22と相対する形で給湯効率を記入。複数記入する際は、記入例の通りカンマ「,」で区切ること。列幅は調整可、型式に追加修正があった場合は赤字で記入"]
[null,24,"対象製品\nリスト\n掲載可能日",null,"日付",10,"任意","YYYY/MM/DD指定した日付以降に情報公開します。（指定した日付までは情報公開されません。）"]
[null,25,"製品情報の\n対外非公表\nを希望する",null,"日付",10,"任意","非公開：○、公開可能：ブランク※ホームページ非公開から公開可能になった場合は、○印を削除して再提出してください。「○」を入力した場合、情報は無期限に公開されません。"]
[null,26,"備考",null,"文字",60,"任意"]

{"sheet":" 高効率給湯器（ハイブリッド）フォーマット","index":2,"n_rows":40,"n_cols":27,"rows_kept":40,"cut":false,"hidden":false,"merged":[[4,3,5,3],[4,2,5,2],[4,1,5,1],[4,15,5,15],[4,14,5,14],[4,13,5,13],[4,8,5,8],[4,7,5,7],[4,6,5,6],[4,5,5,5],[4,4,5,4],[4,12,5,12],[4,11,5,11],[4,10,5,10],[4,9,5,9],[1,25,1,26],[2,16,2,23],[4,16,5,16],[4,21,5,21],[4,20,5,20],[4,19,5,19],[4,18,5,18],[4,17,5,17],[4,26,5,26],[4,25,5,25],[4,24,5,24],[4,23,5,23],[4,22,5,22]]}
[]
[null,"○ヒートポンプ・ガス瞬間式併用型給湯機（ハイブリッド給湯機）　対象製品リスト申請様式　",null,null,null,null,null,null,null,null,null,null,null,null,null,null,null,null,null,null,null,null,null,null,null,"【様式 A1-2】"]
[null,null,null,null,null,null,null,null,null,null,null,null,null,null,null,null,"給湯省エネ2024"]
[null,1,2,3,4,5,6,7,8,9,10,11,12,13,14,15,16,17,18,19,20,21,22,23,24,25,26]
[null,"メーカーコード","●\n登録事業者名","製造メーカー名","●\n機種区分\n（自動入力）","●製品名\n（リスト選択）","機能等","●\n製品型番\n(ヒートポンプユニット)","補助熱源部\n代表機種名","製造元製品\nとの\n適合確認\n（リスト選択）","適合確認した\n製品型番","●\n年間給湯\n効率（％）","給湯省エネ\n2024事業対象\n（リスト選択）","給湯能力\n（号数）","第三者認証\n又は\n自己適合宣言書\n（リスト選択）","品質管理\n認証取得","●\nA要件\n区分\n（リスト選択）","A要件\n確認方法\n（自動入力）","A要件\n納品書確認型式","A要件\n現地確認型式","●\nB要件\n区分\n（リスト選択）","B要件\n確認方法\n（自動入力）","B要件\n現地確認型式","B要件\n給湯ユニット型式ごとの給湯効率","対象製品\nリスト\n掲載可能日","製品情報の\n対外非公表\nを希望する\n（リスト選択）","備考"]
[]
[null,null,null,null,{"$f":"IF(H7<>\"\",\"ハイブリッド給湯機\",\"\")","v":""},null,null,null,null,null,null,null,null,null,null,null,null,{"$f":"_xlfn.SWITCH(Q7,1,\"本体型式\",2,\"リモコン型式\",\"\")","v":""},null,null,null,{"$f":"_xlfn.SWITCH(U7,1,\"本体型式\",2,\"貯湯ユニット型式\",\"\")","v":""}]
[null,null,null,null,{"$f":"IF(H8<>\"\",\"ハイブリッド給湯機\",\"\")","v":""},null,null,null,null,null,null,null,null,null,null,null,null,{"$f":"_xlfn.SWITCH(Q8,1,\"本体型式\",2,\"リモコン型式\",\"\")","v":""},null,null,null,{"$f":"_xlfn.SWITCH(U8,1,\"本体型式\",2,\"貯湯ユニット型式\",\"\")","v":""}]
[null,null,null,null,"",null,null,null,null,null,null,null,null,null,null,null,null,"",null,null,null,""]
[null,null,null,null,"",null,null,null,null,null,null,null,null,null,null,null,null,"",null,null,null,""]
[null,null,null,null,"",null,null,null,null,null,null,null,null,null,null,null,null,"",null,null,null,""]
[null,null,null,null,"",null,null,null,null,null,null,null,null,null,null,null,null,"",null,null,null,""]
[null,null,null,null,"",null,null,null,null,null,null,null,null,null,null,null,null,"",null,null,null,""]
[null,null,null,null,"",null,null,null,null,null,null,null,null,null,null,null,null,"",null,null,null,""]
[null,null,null,null,"",null,null,null,null,null,null,null,null,null,null,null,null,"",null,null,null,""]
[null,null,null,null,"",null,null,null,null,null,null,null,null,null,null,null,null,"",null,null,null,""]
[null,null,null,null,"",null,null,null,null,null,null,null,null,null,null,null,null,"",null,null,null,""]
[null,null,null,null,"",null,null,null,null,null,null,null,null,null,null,null,null,"",null,null,null,""]
[null,null,null,null,"",null,null,null,null,null,null,null,null,null,null,null,null,"",null,null,null,""]
[null,null,null,null,"",null,null,null,null,null,null,null,null,null,null,null,null,"",null,null,null,""]
[null,null,null,null,"",null,null,null,null,null,null,null,null,null,null,null,null,"",null,null,null,""]
[null,null,null,null,"",null,null,null,null,null,null,null,null,null,null,null,null,"",null,null,null,""]
[null,null,null,null,"",null,null,null,null,null,null,null,null,null,null,null,null,"",null,null,null,""]
[null,null,null,null,"",null,null,null,null,null,null,null,null,null,null,null,null,"",null,null,null,""]
[null,null,null,null,"",null,null,null,null,null,null,null,null,null,null,null,null,"",null,null,null,""]
[null,null,null,null,"",null,null,null,null,null,null,null,null,null,null,null,null,"",null,null,null,""]
[null,null,null,null,"",null,null,null,null,null,null,null,null,null,null,null,null,"",null,null,null,""]
[null,null,null,null,"",null,null,null,null,null,null,null,null,null,null,null,null,"",null,null,null,""]
[null,null,null,null,"",null,null,null,null,null,null,null,null,null,null,null,null,"",null,null,null,""]
[null,null,null,null,"",null,null,null,null,null,null,null,null,null,null,null,null,"",null,null,null,""]
[null,null,null,null,"",null,null,null,null,null,null,null,null,null,null,null,null,"",null,null,null,""]
[null,null,null,null,"",null,null,null,null,null,null,null,null,null,null,null,null,"",null,null,null,""]
[null,null,null,null,"",null,null,null,null,null,null,null,null,null,null,null,null,"",null,null,null,""]
[null,null,null,null,"",null,null,null,null,null,null,null,null,null,null,null,null,"",null,null,null,""]
[null,null,null,null,"",null,null,null,null,null,null,null,null,null,null,null,null,"",null,null,null,""]
[null,null,null,null,"",null,null,null,null,null,null,null,null,null,null,null,null,"",null,null,null,""]
[null,null,null,null,"",null,null,null,null,null,null,null,null,null,null,null,null,"",null,null,null,""]
[null,null,null,null,"",null,null,null,null,null,null,null,null,null,null,null,null,"",null,null,null,""]
[null,null,null,null,"",null,null,null,null,null,null,null,null,null,null,null,null,"",null,null,null,""]
[null,null,null,null,"",null,null,null,null,null,null,null,null,null,null,null,null,"",null,null,null,""]